Cogmind - Beta 12 X4 @@@ ROGUE MODE // 2022.12.06 @ 00:36:19 Player: Lunatic Blue Result: Destroyed by G-73 Enforcer with Phase Gun Performance ------------- Evolutions (8) 4000 Regions Visited (20) 4000 Robots Destroyed (233) 1165 Value Destroyed (11593) 11593 Prototype IDs (9) 180 Alien Tech Used (0) 0 Bonus (5337) 5337 TOTAL SCORE: 26275 Bonus ------- High Alert Combat Kills 1334 Follower Combat Kills 1393 Entered Garrisons 800 Used RIF Installer 2000 Entered DSFs 500 Friendly Fire -690 Cogmind --------- Core Integrity 0/1450 Matter 246/300 Energy 75/100 System Corruption 17% Temperature Cool (9) Movement Walking (120) Location -2/Research Parts ------- > --- POWER (2) -------- (None) > --- PROPULSION (6) --- Centrium Leg Centrium Leg > --- UTILITY (11) ----- (None) > --- WEAPON (4) ------- (None) > --- INVENTORY (5) ---- Light Antimatter Reactor Micro Antimatter Reactor Advanced Actuator Array Improved Remote Datajack Heavy Mace Peak State ------------ > --- POWER ------------ Cooled Antimatter Reactor Cooled Antimatter Reactor > --- PROPULSION ------- Armored Medium Treads Armored Medium Treads Armored Medium Treads Armored Medium Treads Armored Medium Treads Armored Medium Treads > --- UTILITY ---------- Advanced Heat Sink Advanced Heat Sink Huge Storage Unit Gravity Neutralizer Core Analyzer Advanced Weapon Cycler Layered Heavy Armor Plating Improved Focal Shield Relay Coupler [Sentry] Relay Coupler [Heavy] > --- WEAPON ----------- Enhanced Quantum Rifle Enhanced Quantum Rifle Enhanced Quantum Rifle Enhanced Quantum Rifle > --- INVENTORY -------- Light Ion Engine Medium Treads Wheel Huge Storage Unit Huge Storage Unit Active Sensor Suite Advanced Melee Analysis Suite Advanced Actuator Array Layered Heavy Armor Plating Relay Coupler [NC] Drone Bay Enhanced Quantum Rifle HERF Cannon Advanced Plasma Cannon Enhanced Nova Cannon Hardcell Cannon Smartbomb Launcher Improved Remote Datajack Heavy Mace Chainsword [Rating: 159] Favorites ----------- Power Hybrid Fission Core Engine Cooled Ion Engine Power Core Hybrid Fission Core Reactor Light Antimatter Reactor Propulsion Light Treads Treads Light Treads Leg Flexi-carbon Leg Wheel Wheel Hover Unit Makeshift Hover Unit Flight Unit Improved Q-thruster Utility Core Analyzer Device Advanced Heat Sink Storage Huge Storage Unit Processor Core Analyzer Hackware Relay Coupler [Sentry] Protection Improved Light Armor Plating Weapon Phase Gun Energy Gun Phase Gun Energy Cannon Heavy Particle Cannon Ballistic Gun KE Penetrator Ballistic Cannon Assault Cannon Launcher Rocket Launcher Special Weapon Improved Remote Datajack Special Melee Weapon Datajack Build | -11 -10 -10 -9 -9 -8 -8 -8 -7 -7 -6 -5 -5 -5 -5 -4 -4 -4 -3 -3 -2 ------- Run | Scr Mat Min Mat Min Mat Gar Mat Fac Gar Fac Fac Gar Fac Gar Fac Upp Upp Res DSF Res Slots Evolved 16 | . . . 2 . 2 . . 2 . 2 2 . . . 2 . . 2 . 2 Power 1 | . . . . . . . . . . 1 . . . . . . . . . . Propulsion 4 | . . . 1 . 1 . . . . . 1 . . . 1 . . . . . Utility 9 | . . . 1 . 1 . . 1 . 1 1 . . . 1 . . 1 . 2 Weapon 2 | . . . . . . . . 1 . . . . . . . . . 1 . . Parts Attached 296 | 6 5 3 7 1 29 18 24 3 17 14 1 25 4 6 28 25 . . 23 57 Power 34 | 1 . 1 1 . 2 1 1 . 2 2 . 1 1 . 4 5 . . 4 8 Engine 7 | 1 . 1 1 . 1 . . . 1 . . . . . 1 1 . . . . Core 10 | . . . . . 1 1 1 . 1 1 . 1 . . 2 . . . 2 . Reactor 17 | . . . . . . . . . . 1 . . 1 . 1 4 . . 2 8 Propulsion 77 | 2 1 1 2 1 7 4 13 1 5 3 1 4 . 4 7 5 . . 5 11 Treads 43 | . . . 1 . 5 4 5 1 4 3 1 4 . 2 4 . . . 5 4 Leg 12 | 2 1 1 . . 1 . . . . . . . . 2 . 3 . . . 2 Wheel 20 | . . . 1 1 1 . 8 . 1 . . . . . 3 1 . . . 4 Hover 1 | . . . . . . . . . . . . . . . . 1 . . . . Flight 1 | . . . . . . . . . . . . . . . . . . . . 1 Utility 85 | 1 4 . 2 . 8 3 3 2 5 3 . 11 2 2 10 6 . . 4 19 Device 41 | . 2 . . . 2 . 1 1 2 1 . 7 1 2 6 4 . . 3 9 Storage 7 | 1 2 . . . 1 . 1 . . . . . . . . . . . . 2 Processor 3 | . . . . . 1 . . 1 . . . . 1 . . . . . . . Hackware 10 | . . . . . . 1 . . 1 1 . 1 . . 1 2 . . 1 2 Protection 24 | . . . 2 . 4 2 1 . 2 1 . 3 . . 3 . . . . 6 Artifact . | . . . . . . . . . . . . . . . . . . . . . Weapon 100 | 2 . 1 2 . 12 10 7 . 5 6 . 9 1 . 7 9 . . 10 19 Energy Gun 53 | 2 . 1 2 . 3 . 4 . 3 5 . 6 1 . 5 3 . . 8 10 Energy Cannon 17 | . . . . . 6 5 1 . . . . . . . . 3 . . . 2 Ballistic Gun 4 | . . . . . 1 . . . . . . . . . . 1 . . . 2 Ballistic Cannon 3 | . . . . . . . . . 1 . . . . . . 1 . . . 1 Launcher 15 | . . . . . 2 5 2 . 1 . . . . . 1 . . . 1 3 Special Weapon 4 | . . . . . . . . . . . . . . . 1 1 . . 1 1 Impact Weapon . | . . . . . . . . . . . . . . . . . . . . . Slashing Weapon . | . . . . . . . . . . . . . . . . . . . . . Piercing Weapon . | . . . . . . . . . . . . . . . . . . . . . Special Melee Weapon 4 | . . . . . . . . . . 1 . 3 . . . . . . . . Unidentified Prototypes 9 | . . . 1 . 3 . . . . . . . 1 . . . . . . 4 Corrupted Parts 1 | . . . . . . . . . . 1 . . . . . . . . . . System Corruption 5 | . . . . . . . . . . 5 . . . . . . . . . . Parts Lost 122 | . . 3 2 . 3 1 7 . 7 1 . 1 2 3 20 17 . . 14 41 Power 18 | . . 1 . . . . . . 1 . . . . . 2 4 . . 3 7 Propulsion 40 | . . 1 2 . 2 . 3 . 4 . . 1 . 2 7 3 . . 4 11 Utility 32 | . . . . . 1 1 2 . . . . . 1 1 8 3 . . 3 12 Weapon 32 | . . 1 . . . . 2 . 2 1 . . 1 . 3 7 . . 4 11 Highest Loss Streak 17 | . . 2 2 . 1 1 4 . 5 1 . 1 1 3 6 12 . . 10 17 To Critical Strikes 6 | . . . . . . . . . . . . . . 2 2 . . . . 2 Average Slot Usage (%) 90 | . 99 98 96 91 97 92 94 91 99 99 94 88 81 88 84 74 89 . 70 77 Engine 2 | . 14 12 11 11 4 7 . . . . . . . . . . . . . . Core 4 | . . . . . 4 1 9 7 6 8 5 5 5 5 3 . . . 2 . Reactor 2 | . . . . . . . . . . 3 5 5 5 5 5 6 5 . 2 5 Treads 17 | . . . 1 11 19 27 21 15 27 26 29 21 17 16 16 1 . . 2 17 Leg 3 | . 28 28 19 . 1 . . . . . . . . 5 2 9 15 . 4 . Wheel 4 | . . . 9 14 13 9 11 15 2 . . . . . 5 . 5 . . 1 Device 11 | . 13 14 11 11 14 9 8 14 8 6 5 9 11 10 12 18 21 . 20 13 Storage 7 | . 14 14 11 11 9 9 9 7 7 6 5 5 5 5 5 5 5 . 4 5 Processor 4 | . . . . . 4 1 . 7 7 6 5 5 5 11 7 5 5 . 4 1 Hackware 5 | . . . . . . . 9 7 7 12 11 7 4 . 1 9 10 . 8 9 Protection 5 | . . . 10 11 6 9 7 . 6 6 5 5 5 5 6 . . . . 4 Energy Gun 14 | . 28 28 22 22 6 9 14 15 15 18 17 16 15 17 14 5 5 . 10 10 Energy Cannon 2 | . . . . . 11 8 3 . . . . . . . . 5 5 . . . Ballistic Cannon 1 | . . . . . . . . . 6 1 . . . . . 1 5 . . 1 Naked Turns 3 | . . . . . . . . . . . . . . . . . . . . 3 Heaviest Build 176 | 14 15 15 21 21 33 43 97 94 106 117 117 150 160 155 162 132 118 118 128 176 Greatest Support 175 | 20 20 20 20 22 22 20 60 22 80 90 110 167 167 167 98 69 19 19 108 175 Greatest Overweight (x) 40 | 1 . . 1 1 3 4 9 4 8 1 1 1 . 7 5 10 6 6 40 40 Average Overweight (x) 1 | . . . . . 1 3 2 4 1 1 1 . . 1 3 2 6 6 6 1 Largest Inventory Capacity 25 | 8 25 8 8 8 10 10 25 25 25 25 25 25 25 25 25 25 25 25 25 25 Average Capacity 19 | 6 8 8 8 8 8 10 15 25 25 25 25 25 25 25 25 25 25 25 25 24 Most Carried 25 | 3 8 7 8 8 10 10 25 25 25 25 25 25 25 25 25 23 23 23 25 25 Average Carried 18 | 1 7 6 6 7 8 9 13 23 24 24 24 24 24 22 22 18 23 23 20 18 Final Capacity 25 | 8 8 8 8 8 10 10 25 25 25 25 25 25 25 25 25 25 25 25 25 5 Final Carried 25 | 3 7 5 7 8 10 10 25 25 25 25 24 25 24 22 19 23 23 23 21 5 Class Distribution -------------------- 33% | Bothacker-Gunner 30% | Scavenger-Mutant 14% | Scavenger-Gunner 11% | Mutant 5% | Scavenger-Tank 3% | Bothacker-Mutant Dominant Class ---------------- Mutant | -10/Materials Mutant | -10/Mines Mutant | -9/Materials Scavenger-Mutant | -9/Mines Scavenger-Mutant | -8/Materials Scavenger-Mutant | -8/Garrison Scavenger-Mutant | -8/Materials Scavenger-Mutant | -7/Factory Bothacker-Gunner | -7/Garrison Bothacker-Gunner | -6/Factory Bothacker-Gunner | -5/Factory Bothacker-Gunner | -5/Garrison Scavenger-Gunner | -5/Factory Scavenger-Gunner | -5/Garrison Scavenger-Gunner | -4/Factory Bothacker-Gunner | -4/Upper Caves Scavenger-Gunner | -4/Upper Caves Scavenger-Gunner | -3/Research Scavenger-Mutant | -3/DSF Scavenger-Tank | -2/Research Resources | -11 -10 -10 -9 -9 -8 -8 -8 -7 -7 -6 -5 -5 -5 -5 -4 -4 -4 -3 -3 -2 ----------- Run | Scr Mat Min Mat Min Mat Gar Mat Fac Gar Fac Fac Gar Fac Gar Fac Upp Upp Res DSF Res Matter Collected 3782 | 250 50 35 55 20 346 291 228 . 394 181 . 200 95 63 294 294 . . . 986 Remotely . | . . . . . . . . . . . . . . . . . . . . . Salvage Created 9913 | . 379 134 246 75 1044 543 940 . 900 423 20 384 335 537 965 531 . . 443 2014 Parts 418 | . 20 6 8 7 56 17 57 . 23 14 . 12 5 26 50 18 . . 12 87 Haulers Intercepted 8 | . 1 . . . 3 . 1 . . . . . 1 . 1 . . . . 1 Recyclers Shooed 2 | . . 1 . . . . . . . . . . . . 1 . . . . . Parts Field Recycled . | . . . . . . . . . . . . . . . . . . . . . Retrieved Matter . | . . . . . . . . . . . . . . . . . . . . . Parts Self-Destructed 32 | . . . . . . . . . . . . . . . . 32 . . . . Prevented . | . . . . . . . . . . . . . . . . . . . . . Kills | -11 -10 -10 -9 -9 -8 -8 -8 -7 -7 -6 -5 -5 -5 -5 -4 -4 -4 -3 -3 -2 ------- Run | Scr Mat Min Mat Min Mat Gar Mat Fac Gar Fac Fac Gar Fac Gar Fac Upp Upp Res DSF Res Combat Hostiles Destroyed 191 | . 5 4 4 1 20 24 18 . 22 7 . 5 4 11 14 11 . . 7 34 Guns 97 | . 4 1 3 1 5 4 14 . 13 6 . 4 4 10 10 2 . . 1 15 Cannons 42 | . . . . . 6 8 . . 9 . . . . . . 9 . . . 10 AOE 40 | . 1 3 . . 8 10 4 . . . . . . . 4 . . . 4 6 Classes Destroyed 17 | . 6 1 1 . 2 . 1 . 5 . . 1 . . . . . . . . Worker 11 | . 1 . . 2 . . 5 . . . . . . . 2 . . . . 1 Builder 6 | . . . . . 2 . 2 . . . . . . . 1 . . . . 1 Tunneler 5 | . 1 . 1 1 . . . . . . . . . . . . . . . 2 Hauler 8 | . 1 . . . 3 . 1 . . . . . 1 . 1 . . . . 1 Mechanic 1 | . . . . . . . . . 1 . . . . . . . . . . . Operator 5 | . 1 . . . 1 . 2 . . . 1 . . . . . . . . . Watcher 3 | . 1 . . . . . 1 . . . . . . . 1 . . . . . Swarmer 49 | . . 2 . 1 . 10 6 . 5 1 . 3 . 4 4 5 . . . 8 Grunt 67 | . 5 2 . . 13 13 6 . 6 5 . . . 3 . 3 . . 5 6 Brawler 5 | . . . . . 2 . 1 . . . . . . 1 . . . . . 1 Duelist 4 | . . . . . . . 1 . . . . . . . . 2 . . . 1 Protector 2 | . . . . . . . . . 1 . . . . . . . . . . 1 Sentry 22 | . . . 4 . 5 1 4 . 1 1 . 1 1 . 2 1 . . . 1 Specialist 6 | . . . . . . . . . 3 . . . 1 . . . . . 2 . Hunter 23 | . . . . . . . . . 5 . . . . 2 7 . . . . 9 Programmer 11 | . . . . . . . . . 1 1 . . 1 . 1 . . . . 7 Behemoth 4 | . . . . . . . . . . . . 2 . 1 1 . . . . . Infiltrator 1 | . . . . . . . . . . . . . 1 . . . . . . . Best Kill Streak 11 | . 3 2 1 3 7 6 7 . 11 2 1 3 2 5 7 3 . . 5 8 Combat Bots Only 10 | . 2 2 1 1 5 6 7 . 10 2 . 3 2 5 5 3 . . 5 6 Max Kills in Single Turn 4 | . 2 1 1 1 4 3 3 . 2 2 1 2 1 2 4 1 . . 2 2 Gunslinging 1 | . . . . . . . . . . . . 1 . 1 . . . . . . Exploded 3 | . 1 1 . . 3 3 3 . . . . . . . 2 . . . 2 2 Melee . | . . . . . . . . . . . . . . . . . . . . . Uniques/NPCs Destroyed . | . . . . . . . . . . . . . . . . . . . . . Combat | -11 -10 -10 -9 -9 -8 -8 -8 -7 -7 -6 -5 -5 -5 -5 -4 -4 -4 -3 -3 -2 -------- Run | Scr Mat Min Mat Min Mat Gar Mat Fac Gar Fac Fac Gar Fac Gar Fac Upp Upp Res DSF Res Damage Taken 24017 | . 208 257 305 24 995 1268 1219 . 1354 604 . 566 1048 863 2896 2096 . . 1101 9213 Core 2966 | . 11 84 83 6 122 124 186 . 174 26 . 27 13 141 137 275 . . 87 1470 Absorbed by Shields 87 | . . . . . . . . . . . . . 57 21 9 . . . . . Redirected to Shielding 39 | . . . . . . . . . 36 3 . . . . . . . . . . Core Remaining (%) 74 | 100 . 62 . 77 . . 21 . 75 96 . . . 81 . . 64 . 93 . Volleys Fired 548 | . 35 14 21 5 52 51 55 . 49 17 1 31 16 18 41 34 . . 18 90 Largest 4 | . 2 2 2 2 2 2 2 . 3 3 3 3 3 3 3 3 . . 4 4 Hottest 283 | . 80 80 106 106 143 130 130 . 188 230 225 264 264 264 264 278 . . 260 283 Shots Fired 1318 | . 70 28 42 10 104 102 109 . 146 51 3 86 45 55 105 80 . . 37 245 Gun 1032 | . 70 28 42 10 39 51 85 . 105 49 3 86 45 55 99 46 . . 32 187 Cannon 236 | . . . . . 58 41 21 . 38 2 . . . . . 30 . . . 46 Launcher 42 | . . . . . 7 10 3 . 3 . . . . . 4 . . . 4 11 Special 8 | . . . . . . . . . . . . . . . 2 4 . . 1 1 Kinetic 91 | . . . . . . . . . 38 2 . . . . . 11 . . . 40 Thermal 1059 | . . . 42 10 97 92 106 . 105 49 3 86 45 55 99 65 . . 12 193 Explosive 42 | . . . . . 7 10 3 . 3 . . . . . 4 . . . 4 11 Electromagnetic 118 | . 70 28 . . . . . . . . . . . . . . . . 20 . Robot Hit Streak 22 | . 7 7 10 2 13 10 10 . 14 9 1 13 17 22 12 9 . . 8 16 Robot Miss Streak 8 | . 4 2 2 2 3 8 2 . 4 4 1 3 2 2 4 3 . . 3 6 Penetration Max . | . . . . . . . . . . . . . . . . . . . . . Secondary Targets 19 | . . . . . . . . . . 1 . 3 . 6 1 1 . . . 7 Max Gunslinging Chain 2 | . . . . . . . . . . 1 . 2 . 1 1 1 . . . 2 Shots Hit Robots 805 | . 42 18 32 4 71 45 71 . 85 37 1 49 31 41 61 51 . . 22 144 Core Hits 423 | . 15 7 8 4 47 34 43 . 41 25 1 14 11 19 40 20 . . 17 77 Critical Kills 3 | . . . . . . 2 . . . . . . . . . . . . . 1 Critical Parts Destroyed . | . . . . . . . . . . . . . . . . . . . . . Critical Strikes 38 | . 1 . 3 . 1 4 3 . 7 2 . 4 2 2 3 3 . . 1 2 Burn 30 | . . . 3 . 1 2 3 . 5 2 . 4 2 2 3 3 . . . . Meltdown 3 | . . . . . . 2 . . . . . . . . . . . . . 1 Blast 3 | . . . . . . . . . 2 . . . . . . . . . . 1 Corrupt 2 | . 1 . . . . . . . . . . . . . . . . . 1 . Melee Attacks 8 | . . . . . . . . . . 2 . 6 . . . . . . . . Impact . | . . . . . . . . . . . . . . . . . . . . . Slashing . | . . . . . . . . . . . . . . . . . . . . . Piercing . | . . . . . . . . . . . . . . . . . . . . . Sneak Attacks 3 | . . . . . . . . . . . . 3 . . . . . . . . Combat Hostiles . | . . . . . . . . . . . . . . . . . . . . . Follow-up Attacks . | . . . . . . . . . . . . . . . . . . . . . Damage Inflicted 26163 | . 759 351 470 56 2359 2270 1868 . 1994 736 21 997 821 1161 2760 1329 . . 1362 6849 Guns 15590 | . 637 212 470 56 482 461 1217 . 1207 713 21 997 821 1161 2053 755 . . 513 3814 Cannons 3930 | . . . . . 975 562 283 . 545 23 . . . . . 574 . . . 968 Explosions 6613 | . 122 139 . . 902 1247 368 . 242 . . . . . 682 . . . 849 2062 Melee . | . . . . . . . . . . . . . . . . . . . . . Ramming 30 | . . . . . . . . . . . . . . . 25 . . . . 5 Kinetic 1538 | . . . . . . . . . 545 23 . . . . . 205 . . . 765 Thermal 17166 | . 122 139 470 56 1457 1023 1500 . 1207 713 21 997 821 1161 2053 1124 . . 285 4017 Explosive 6352 | . . . . . 902 1247 368 . 242 . . . . . 682 . . . 849 2062 Electromagnetic 1077 | . 637 212 . . . . . . . . . . . . . . . . 228 . Impact . | . . . . . . . . . . . . . . . . . . . . . Slashing . | . . . . . . . . . . . . . . . . . . . . . Piercing . | . . . . . . . . . . . . . . . . . . . . . Highest Corruption 17 | . . . . . . . . . 1 5 . . 1 7 . . . . . 17 Average Corruption 3 | . . . . . . . . . 1 5 . . 1 4 . . . . . 9 Corruption Purged . | . . . . . . . . . . . . . . . . . . . . . Corruption Blocked . | . . . . . . . . . . . . . . . . . . . . . Effects 46 | . . . . . . . . . 12 2 . . . 12 . . . . . 20 Message Errors 16 | . . . . . . . . . 5 2 . . . 3 . . . . . 6 Matter Fused 8 | . . . . . . . . . 3 . . . . 3 . . . . . 2 Heat Flow Errors 2 | . . . . . . . . . . . . . . . . . . . . 2 Energy Discharges 2 | . . . . . . . . . . . . . . . . . . . . 2 Data Loss (minor) 11 | . . . . . . . . . 2 . . . . 5 . . . . . 4 Data Loss (major) 3 | . . . . . . . . . 1 . . . . . . . . . . 2 Misfires 2 | . . . . . . . . . 1 . . . . 1 . . . . . . Weapon Failures 2 | . . . . . . . . . . . . . . . . . . . . 2 Overload Shots . | . . . . . . . . . . . . . . . . . . . . . Overflow Damage 358 | . 7 . . . 32 45 . . . . . . . . 48 49 . . 11 166 Projectiles 161 | . . . . . 20 27 . . . . . . . . . 49 . . . 65 Explosions 197 | . 7 . . . 12 18 . . . . . . . . 48 . . . 11 101 Melee . | . . . . . . . . . . . . . . . . . . . . . Knockbacks 9 | . . . . . . . . . 3 . . . . . . 1 . . . 5 Impact . | . . . . . . . . . . . . . . . . . . . . . Kinetic 8 | . . . . . . . . . 2 . . . . . . 1 . . . 5 Secondary 1 | . . . . . . . . . 1 . . . . . . . . . . . Self-Inflicted Damage 596 | . 45 89 . . 71 189 . . . . . . . . . . . . 100 102 Shots 16 | . 2 2 . . 2 5 . . . . . . . . . . . . 3 2 Rammed 2 | . . . . . . . . . . . . . . . 1 . . . . 1 Targets Rammed 2 | . . . . . . . . . . . . . . . 1 . . . . 1 Kicked . | . . . . . . . . . . . . . . . . . . . . . Crushed . | . . . . . . . . . . . . . . . . . . . . . Highest Temperature 719 | . 10 19 51 12 204 120 353 . 39 219 93 360 150 225 54 183 . . 376 719 Average Temperature 93 | . 3 5 15 5 65 23 67 . 12 77 48 133 46 75 19 44 . . 121 208 Received Heat Transfer 3538 | . 90 87 108 . 522 477 558 . 327 198 . 108 340 72 54 264 . . 99 234 Effects 31 | . . . . . . . . . . . . . . . . . . . 1 30 Shutdowns 9 | . . . . . . . . . . . . . . . . . . . . 9 Energy Bleed 2 | . . . . . . . . . . . . . . . . . . . 1 1 Interference 6 | . . . . . . . . . . . . . . . . . . . . 6 Matter Decay 3 | . . . . . . . . . . . . . . . . . . . . 3 Short Circuit 1 | . . . . . . . . . . . . . . . . . . . . 1 Damage (minor) 1 | . . . . . . . . . . . . . . . . . . . . 1 Damage (major) 9 | . . . . . . . . . . . . . . . . . . . . 9 Siege Activations . | . . . . . . . . . . . . . . . . . . . . . Robots Corrupted 2 | . . . . . . . . . . . . . . . . . . . 2 . Combat Hostiles 2 | . . . . . . . . . . . . . . . . . . . 2 . Parts Fried 5 | . 3 . . . . . . . . . . . . . . . . . 2 . Impact Corruptions . | . . . . . . . . . . . . . . . . . . . . . Robots Melted 10 | . . . 1 . 1 2 . . . 1 . 1 . 1 . . . . . 3 Combat Hostiles 10 | . . . 1 . 1 2 . . . 1 . 1 . 1 . . . . . 3 Parts Melted 73 | . . . 8 . 2 4 8 . 4 5 . 8 2 8 6 3 . . . 15 Heat Transferred 28394 | . 150 50 1406 148 2491 1613 2960 . 2572 1773 50 2397 1295 1776 2775 1999 . . 333 4606 Parts Sabotaged . | . . . . . . . . . . . . . . . . . . . . . Parts Stolen . | . . . . . . . . . . . . . . . . . . . . . Parts Stripped . | . . . . . . . . . . . . . . . . . . . . . Power Chain Reactions 6 | . 3 3 . . . . . . . . . . . . . . . . . . Missiles Intercepted . | . . . . . . . . . . . . . . . . . . . . . Alert | -11 -10 -10 -9 -9 -8 -8 -8 -7 -7 -6 -5 -5 -5 -5 -4 -4 -4 -3 -3 -2 ------- Run | Scr Mat Min Mat Min Mat Gar Mat Fac Gar Fac Fac Gar Fac Gar Fac Upp Upp Res DSF Res Peak Influence 1107 | . 303 199 280 76 419 1051 836 282 1107 673 253 670 469 613 519 . . 104 164 683 Initial 581 | . . 70 77 31 29 125 512 282 197 581 233 177 222 188 321 . . 99 78 92 Average 448 | . 161 115 172 58 202 606 578 282 857 516 253 392 318 467 359 . . 100 103 406 Maximum Alert Level 4 | . 1 . 1 . 2 3 3 1 4 2 1 2 2 2 2 . . . . 2 Low Security (%) 21 | 100 68 100 61 100 51 6 . . 1 . . 3 . 8 3 . . 100 100 28 Level 1 27 | . 31 . 38 . 36 21 4 100 9 3 100 50 93 28 76 . . . . 21 Level 2 34 | . . . . . 12 33 77 . 8 96 . 45 6 63 20 . . . . 50 Level 3 14 | . . . . . . 38 17 . 68 . . . . . . . . . . . Level 4 1 | . . . . . . . . . 12 . . . . . . . . . . . Level 5 . | . . . . . . . . . . . . . . . . . . . . . High Security . | . . . . . . . . . . . . . . . . . . . . . Max Security . | . . . . . . . . . . . . . . . . . . . . . Sterilizations 1 | . . . . . . . . . . . . . . . . . . . 1 . Squads Dispatched 21 | . 3 . . . 3 . 3 . . 2 . . 1 . 1 . . . 1 7 Investigation 5 | . 2 . . . 1 . . . . . . . . . . . . . . 2 Extermination 3 | . . . . . . . . . . 1 . . . . . . . . . 2 Reinforcement 9 | . 1 . . . 2 . 1 . . 1 . . 1 . 1 . . . 1 1 Assault 2 | . . . . . . . 1 . . . . . . . . . . . . 1 Garrison 2 | . . . . . . . 1 . . . . . . . . . . . . 1 Intercept . | . . . . . . . . . . . . . . . . . . . . . Searches Triggered . | . . . . . . . . . . . . . . . . . . . . . Construction Impeded 2 | . . . . . 1 . . . . . . . . . . . . . . 1 Haulers Reinforced 1 | . . . . . . . . . . . . . . . 1 . . . . . Active Scanning Responses . | . . . . . . . . . . . . . . . . . . . . . Cargo Convoy Interrupts . | . . . . . . . . . . . . . . . . . . . . . Stealth | -11 -10 -10 -9 -9 -8 -8 -8 -7 -7 -6 -5 -5 -5 -5 -4 -4 -4 -3 -3 -2 --------- Run | Scr Mat Min Mat Min Mat Gar Mat Fac Gar Fac Fac Gar Fac Gar Fac Upp Upp Res DSF Res Distress Signals 6 | . . . . . 1 . 1 . . . . . . . 2 . . . . 2 Communications Jammed . | . . . . . . . . . . . . . . . . . . . . . Distress Signals . | . . . . . . . . . . . . . . . . . . . . . Times Spotted 322 | . 14 6 6 2 36 32 24 . 35 22 . 18 8 14 22 16 . . 9 58 Peak Tracking Total 13 | . 3 2 1 2 7 6 7 . 13 3 . 6 3 5 8 7 . . 5 11 Tactical Retreats 11 | . 1 1 . . 2 . 2 . . 1 . . . 1 . 1 . . . 2 Traps | -11 -10 -10 -9 -9 -8 -8 -8 -7 -7 -6 -5 -5 -5 -5 -4 -4 -4 -3 -3 -2 ------- Run | Scr Mat Min Mat Min Mat Gar Mat Fac Gar Fac Fac Gar Fac Gar Fac Upp Upp Res DSF Res Traps Triggered 22 | . 2 . . . 1 7 1 . 6 1 . 2 . . . . . . . 2 Indirectly . | . . . . . . . . . . . . . . . . . . . . . Trap Hack Attempts . | . . . . . . . . . . . . . . . . . . . . . Triggered . | . . . . . . . . . . . . . . . . . . . . . Disarmed . | . . . . . . . . . . . . . . . . . . . . . Reprogrammed . | . . . . . . . . . . . . . . . . . . . . . Reused . | . . . . . . . . . . . . . . . . . . . . . Traps Extracted . | . . . . . . . . . . . . . . . . . . . . . Installed . | . . . . . . . . . . . . . . . . . . . . . Triggered 4 | . . . . . . . . . . . . . . . . 3 1 . . . Machines | -11 -10 -10 -9 -9 -8 -8 -8 -7 -7 -6 -5 -5 -5 -5 -4 -4 -4 -3 -3 -2 ---------- Run | Scr Mat Min Mat Min Mat Gar Mat Fac Gar Fac Fac Gar Fac Gar Fac Upp Upp Res DSF Res Machines Disabled 24 | . 3 . . . 1 5 3 . 1 . 1 5 . 1 1 1 . . . 2 Max in Single Turn 2 | . 2 . . . 1 1 1 . 1 . 1 1 . 1 1 . . . . 1 Garrison Access 2 | . . . . . . . 1 . . . . . . . . . . . . 1 Garrison Relay 8 | . . . . . . 4 . . 1 . . 2 . 1 . . . . . . Machines Sabotaged . | . . . . . . . . . . . . . . . . . . . . . Overloaded Fab Kills . | . . . . . . . . . . . . . . . . . . . . . Hacking | -11 -10 -10 -9 -9 -8 -8 -8 -7 -7 -6 -5 -5 -5 -5 -4 -4 -4 -3 -3 -2 --------- Run | Scr Mat Min Mat Min Mat Gar Mat Fac Gar Fac Fac Gar Fac Gar Fac Upp Upp Res DSF Res Machines Accessed 33 | . 3 . 3 . 5 1 4 1 2 4 2 1 2 1 1 1 . 1 . 1 Terminals 26 | . 3 . 2 . 4 1 4 . 2 3 1 1 1 1 1 . . 1 . 1 Fabricators . | . . . . . . . . . . . . . . . . . . . . . Repair Stations . | . . . . . . . . . . . . . . . . . . . . . Recycling Units . | . . . . . . . . . . . . . . . . . . . . . Scanalyzers 2 | . . . 1 . . . . . . 1 . . . . . . . . . . Garrison Access 4 | . . . . . 1 . . 1 . . 1 . 1 . . . . . . . Total Hacks 75 | . 15 . 11 . 13 1 9 2 3 6 5 1 3 1 1 1 . 1 . 2 Successful 40 | . 8 . 6 . 8 . 4 2 1 2 2 1 2 1 . 1 . 1 . 1 Failed 35 | . 7 . 5 . 5 1 5 . 2 4 3 . 1 . 1 . . . . 1 Catastrophic 5 | . . . . . . 1 . . . 2 . . 1 . 1 . . . . . Database Lockouts . | . . . . . . . . . . . . . . . . . . . . . Manual 39 | . 14 . 6 . 9 . 8 . . 1 . . 1 . . . . . . . Terminals 61 | . 15 . 6 . 12 1 9 . 3 5 3 1 1 1 1 . . 1 . 2 Fabricators . | . . . . . . . . . . . . . . . . . . . . . Repair Stations . | . . . . . . . . . . . . . . . . . . . . . Recycling Units . | . . . . . . . . . . . . . . . . . . . . . Scanalyzers 6 | . . . 5 . . . . . . 1 . . . . . . . . . . Garrison Access 7 | . . . . . 1 . . 2 . . 2 . 2 . . . . . . . Terminal Hacks 17 | . 3 . . . 3 . 3 . 1 2 . 1 . 1 . 1 . 1 . 1 Record 1 | . . . . . . . . . . 1 . . . . . . . . . . Robot Analysis 3 | . 1 . . . 1 . . . . . . . . . . . . . . 1 Open Door 1 | . . . . . . . . . . . . . . . . 1 . . . . Open DSF 1 | . . . . . . . . . . . . . . . . . . 1 . . Emergency Access Points 2 | . . . . . . . . . 1 . . 1 . . . . . . . . Terminal Index 1 | . 1 . . . . . . . . . . . . . . . . . . . Unreport Threat 4 | . . . . . 2 . 2 . . . . . . . . . . . . . Dispatch Records 1 | . . . . . . . . . . 1 . . . . . . . . . . Zone Layout 2 | . 1 . . . . . 1 . . . . . . . . . . . . . Patrol Navigation 1 | . . . . . . . . . . . . . . 1 . . . . . . Fabricator Hacks . | . . . . . . . . . . . . . . . . . . . . . Repair Station Hacks . | . . . . . . . . . . . . . . . . . . . . . Recycling Unit Hacks . | . . . . . . . . . . . . . . . . . . . . . Scanalyzer 5 | . . . 5 . . . . . . . . . . . . . . . . . Insert Component 3 | . . . 3 . . . . . . . . . . . . . . . . . Analyze 2 | . . . 2 . . . . . . . . . . . . . . . . . Garrison Access Hacks 7 | . . . . . 1 . . 2 . . 2 . 2 . . . . . . . Unlock Access 4 | . . . . . 1 . . 1 . . 1 . 1 . . . . . . . Coupler Status 3 | . . . . . . . . 1 . . 1 . 1 . . . . . . . Unauthorized Hacks 11 | . 5 . 1 . 4 . 1 . . . . . . . . . . . . . Terminals 11 | . 5 . 1 . 4 . 1 . . . . . . . . . . . . . Track 1 | . 1 . . . . . . . . . . . . . . . . . . . Botnet 9 | . 3 . 1 . 4 . 1 . . . . . . . . . . . . . Operators 1 | . 1 . . . . . . . . . . . . . . . . . . . Fabricators . | . . . . . . . . . . . . . . . . . . . . . Repair Stations . | . . . . . . . . . . . . . . . . . . . . . Recycling Units . | . . . . . . . . . . . . . . . . . . . . . Scanalyzers . | . . . . . . . . . . . . . . . . . . . . . Garrison Access . | . . . . . . . . . . . . . . . . . . . . . Data Cores Recovered 2 | . . . . . 1 . 1 . . . . . . . . . . . . . Used . | . . . . . . . . . . . . . . . . . . . . . Hacking Detections 28 | . 3 . 3 . 4 1 3 1 1 4 2 1 1 1 1 . . 1 . 1 Full Trace Events 1 | . 1 . . . . . . . . . . . . . . . . . . . Feedback Events . | . . . . . . . . . . . . . . . . . . . . . Feedback Blocked . | . . . . . . . . . . . . . . . . . . . . . Robot Schematics Acquired . | . . . . . . . . . . . . . . . . . . . . . Robots Built . | . . . . . . . . . . . . . . . . . . . . . Authchips . | . . . . . . . . . . . . . . . . . . . . . Time . | . . . . . . . . . . . . . . . . . . . . . Total Robot Build Rating . | . . . . . . . . . . . . . . . . . . . . . Part Schematics Acquired 2 | . . . 2 . . . . . . . . . . . . . . . . . Parts Built . | . . . . . . . . . . . . . . . . . . . . . Authchips . | . . . . . . . . . . . . . . . . . . . . . Time . | . . . . . . . . . . . . . . . . . . . . . Total Part Build Rating . | . . . . . . . . . . . . . . . . . . . . . Parts Repaired . | . . . . . . . . . . . . . . . . . . . . . Time . | . . . . . . . . . . . . . . . . . . . . . Parts Recycled . | . . . . . . . . . . . . . . . . . . . . . Recycled Matter . | . . . . . . . . . . . . . . . . . . . . . Retrieved Matter . | . . . . . . . . . . . . . . . . . . . . . Retrieved Components . | . . . . . . . . . . . . . . . . . . . . . Parts Scanalyzed 2 | . . . 2 . . . . . . . . . . . . . . . . . Part Schematics Acquired 2 | . . . 2 . . . . . . . . . . . . . . . . . Parts Damaged . | . . . . . . . . . . . . . . . . . . . . . Bothacking | -11 -10 -10 -9 -9 -8 -8 -8 -7 -7 -6 -5 -5 -5 -5 -4 -4 -4 -3 -3 -2 ------------ Run | Scr Mat Min Mat Min Mat Gar Mat Fac Gar Fac Fac Gar Fac Gar Fac Upp Upp Res DSF Res Used RIF Installer 4 | . . . . . . 1 . . 1 . . 1 . 1 . . . . . . Zone Cloak 1 | . . . . . . . . . 1 . . . . . . . . . . . Structural Interface 1 | . . . . . . . . . . . . 1 . . . . . . . . Program Shield 1 | . . . . . . . . . . . . . . 1 . . . . . . Robots Hacked 11 | . . . . . . . . . . 1 . 3 . . 2 3 . . 1 1 Non-combat 1 | . . . . . . . . . . . . 1 . . . . . . . . Combat 10 | . . . . . . . . . . 1 . 2 . . 2 3 . . 1 1 Robot Hacks Applied 13 | . . . . . . . . . . 1 . 5 . . 2 3 . . 1 1 purge_threat 2 | . . . . . . . . . . . . 2 . . . . . . . . overwrite_iff 2 | . . . . . . . . . . . . . . . 2 . . . . . formatsys_low 1 | . . . . . . . . . . . . 1 . . . . . . . . formatsys_high 8 | . . . . . . . . . . 1 . 2 . . . 3 . . 1 1 Relay Couplers Released 39 | . . . . . . 15 3 . 5 . . 8 . 4 . . . . . 4 Machine Destruction 39 | . . . . . . 15 3 . 5 . . 8 . 4 . . . . . 4 Attached 10 | . . . . . . 1 . . 1 1 . 1 . . 1 2 . . 1 2 Fabnet Peak Effective % . | . . . . . . . . . . . . . . . . . . . . . Robots Rewired 7 | . . . . . . 3 . . . . . 2 . . . 2 . . . . Allies Hacked 2 | . . . . . . . . . . 2 . . . . . . . . . . Hacks Repelled . | . . . . . . . . . . . . . . . . . . . . . Allies | -11 -10 -10 -9 -9 -8 -8 -8 -7 -7 -6 -5 -5 -5 -5 -4 -4 -4 -3 -3 -2 -------- Run | Scr Mat Min Mat Min Mat Gar Mat Fac Gar Fac Fac Gar Fac Gar Fac Upp Upp Res DSF Res Total Allies 25 | . . . . . . 3 . . 2 4 . 7 . . 2 5 . . 1 1 Largest Group 5 | . . . . . . 3 1 . 2 3 2 5 5 1 1 3 . . 1 1 Highest-Rated Group 324 | . . . . . . 72 24 . 175 93 62 324 324 95 56 158 . . 137 58 Highest-Rated Ally 137 | . . . . . . 24 24 . 95 47 31 116 95 95 56 64 . . 137 58 Total Orders . | . . . . . . . . . . . . . . . . . . . . . Ally Attacks 228 | . . . . . . 25 . . 29 37 . 58 27 10 2 23 . . 7 10 Total Damage 6339 | . . . . . . 595 . . 1077 495 . 1164 1081 572 118 667 . . 378 192 Kills 47 | . . . . . . 8 . . 9 6 . 12 4 3 1 3 . . 1 . Allies Corrupted . | . . . . . . . . . . . . . . . . . . . . . Allies Melted . | . . . . . . . . . . . . . . . . . . . . . Intel | -11 -10 -10 -9 -9 -8 -8 -8 -7 -7 -6 -5 -5 -5 -5 -4 -4 -4 -3 -3 -2 ------- Run | Scr Mat Min Mat Min Mat Gar Mat Fac Gar Fac Fac Gar Fac Gar Fac Upp Upp Res DSF Res Robot Analysis Total 3 | . 1 . . . 1 . . . . . . . . . . . . . . 1 Derelict Logs Recovered 2 | . . 1 . . . . . . . . . . . . . . 1 . . . Drone Launches . | . . . . . . . . . . . . . . . . . . . . . Drone Recoveries . | . . . . . . . . . . . . . . . . . . . . . Exploration | -11 -10 -10 -9 -9 -8 -8 -8 -7 -7 -6 -5 -5 -5 -5 -4 -4 -4 -3 -3 -2 ------------- Run | Scr Mat Min Mat Min Mat Gar Mat Fac Gar Fac Fac Gar Fac Gar Fac Upp Upp Res DSF Res Turns Passed 11881 | 53 508 124 421 124 976 983 849 109 1611 1251 84 956 409 418 710 740 24 3 441 1087 Spaces Moved 5372 | 36 288 56 257 106 600 566 456 72 642 483 34 401 211 142 279 263 15 2 74 389 Core 31 | 5 . . . . . . . . . . . . . . . 5 . . 7 14 Treads 2218 | . . . . . 11 1 75 . 496 483 34 401 211 139 79 11 . . 29 248 Legs 681 | 31 288 56 42 . . . . . . . . . . 3 . 211 . . 23 27 Wheels 2442 | . . . 215 106 589 565 381 72 146 . . . . . 200 36 15 2 15 100 Hover . | . . . . . . . . . . . . . . . . . . . . . Flight . | . . . . . . . . . . . . . . . . . . . . . Fastest Speed 50 | 50 120 120 105 85 85 110 95 145 145 238 239 155 163 163 116 145 170 170 170 50 Average Speed 171 | 115 120 120 107 99 108 129 130 145 220 240 239 181 163 247 194 223 170 170 479 184 Slowest Speed 2050 | 120 120 120 120 105 240 240 480 145 242 242 239 239 163 610 480 550 170 170 2050 2050 Overloaded Moves . | . . . . . . . . . . . . . . . . . . . . . Propulsion Burnouts . | . . . . . . . . . . . . . . . . . . . . . Robots Hopped . | . . . . . . . . . . . . . . . . . . . . . Cave-ins Triggered . | . . . . . . . . . . . . . . . . . . . . . Exploration Rate (%) 29 | 2 48 14 24 24 48 57 39 3 71 16 1 51 9 40 12 41 6 . 72 11 Regions Visited 20 Branch Regions 4 Pre-discovered Areas . | . . . . . . . . . . . . . . . . . . . . . Known Exits Taken 5 | . . . . . 1 . . 1 . . 1 . 1 . . . . 1 . . Unknown Exits Taken 10 | 1 1 1 1 1 . . 1 . . 1 . . . . 1 1 1 . . . Scrap Searched 2 | . . . . . . . . . . . . . . . . 2 . . . . Spaces Dug 37 | . . . . . . 27 9 . . . . . . . . . . . . 1 Terrain Destroyed 357 | . 9 21 . . 56 35 32 . 3 . . . . . 64 15 . . 31 91 Melee . | . . . . . . . . . . . . . . . . . . . . . Projectile 63 | . . . . . 7 . 9 . . . . . . . 9 15 . . . 23 AOE 294 | . 9 21 . . 49 35 23 . 3 . . . . . 55 . . . 31 68 Terrain Rammed . | . . . . . . . . . . . . . . . . . . . . . Walls Destroyed . | . . . . . . . . . . . . . . . . . . . . . Machines Disabled . | . . . . . . . . . . . . . . . . . . . . . Actions | -11 -10 -10 -9 -9 -8 -8 -8 -7 -7 -6 -5 -5 -5 -5 -4 -4 -4 -3 -3 -2 --------- Run | Scr Mat Min Mat Min Mat Gar Mat Fac Gar Fac Fac Gar Fac Gar Fac Upp Upp Res DSF Res Total 6942 | 44 383 85 360 114 826 711 600 77 733 538 35 572 241 171 365 346 14 2 137 588 Wait 337 | . 32 12 64 . 101 15 41 . . 1 . 46 . . 3 3 . . 14 5 Move 5354 | 35 287 55 256 105 600 565 455 71 640 482 33 400 211 141 279 262 14 1 73 389 Hop . | . . . . . . . . . . . . . . . . . . . . . Pick Up 136 | 3 14 1 7 2 15 7 15 2 11 7 . 12 3 3 6 8 . . 2 18 Fast Attach 111 | 6 2 . 2 1 15 2 2 . 1 4 . 8 1 3 14 12 . . 15 23 Attach 94 | . . 3 2 . 2 3 4 2 8 3 1 4 2 3 14 6 . . 8 29 Detach 21 | . . . . . . . . . . . . 5 . . 4 . . . 5 7 Swap 91 | . 3 . 3 . 12 13 18 1 8 7 . 13 1 . . 7 . . . 5 Drop 146 | . 10 . 5 1 29 9 10 1 6 14 . 27 3 3 4 . . 1 2 21 Fire 548 | . 35 14 21 5 52 51 55 . 49 17 1 31 16 18 41 34 . . 18 90 Melee 8 | . . . . . . . . . . 2 . 6 . . . . . . . . Ram . | . . . . . . . . . . . . . . . . . . . . . Kick . | . . . . . . . . . . . . . . . . . . . . . Crush 1 | . . . . . . . . . . . . . . . . . . . . 1 Escape Stasis 54 | . . . . . . 40 . . 10 . . 4 . . . . . . . . Rewire 41 | . . . . . . 6 . . . 1 . 16 4 . . 14 . . . . Trap . | . . . . . . . . . . . . . . . . . . . . . Miscellaneous . | . . . . . . . . . . . . . . . . . . . . . Route ------- -11/Scrapyard -10/Materials (discovered 2 exits: *Mat / [*Min]) -10/Mines -9/Materials (discovered 2 exits: [*Min] / [*Sto]) -9/Mines -8/Materials (discovered 2 exits: *Fac / Gar) -8/Garrison (discovered 4 exits: *Mat x4) -8/Materials (discovered 3 exits: *Fac x3) -7/Factory -7/Garrison (discovered 3 exits: *Fac x3) -6/Factory -5/Factory -5/Garrison -5/Factory -5/Garrison -4/Factory -4/Upper Caves -4/Upper Caves -3/Research (discovered 3 exits: Res / Arm / DSF) -3/DSF -2/Research History --------- Turn | Location | Event 5 | -11/Scrapyard | Discovered new exit (range 16) 54 | -11/Scrapyard | Entered Materials 312 | -10/Materials | Build established: Mutant 393 | -10/Materials | Discovered new exit (range 16) 556 | -10/Materials | Discovered new exit (range 6) 562 | -10/Materials | Entered Mines 618 | -10/Mines | Learned Materials garrison access intel 656 | -10/Mines | Discovered new exit (range 5) 686 | -10/Mines | Entered Materials 686 | -9/Materials | Evolved 2 slots: Propulsion x1, Utility x1 796 | -9/Materials | Discovered new exit (range 14) 1053 | -9/Materials | Discovered new exit (range 13) 1107 | -9/Materials | Entered Mines 1128 | -9/Mines | Received a Rocket Launcher from a helpful Derelict 1219 | -9/Mines | Discovered new exit (range 9) 1228 | -9/Mines | Assembled infested the area 1231 | -9/Mines | Entered Materials 1231 | -8/Materials | Evolved 2 slots: Propulsion x1, Utility x1 1232 | -8/Materials | Loaded intel: 1 garrison access location 1410 | -8/Materials | Build established: Scavenger-Mutant 1629 | -8/Materials | Discovered new exit (range 11) 2207 | -8/Materials | Identified exit to Garrison 2207 | -8/Materials | Entered Garrison 2208 | -8/Garrison | Triggered checkpoint 2260 | -8/Garrison | Triggered checkpoint 2295 | -8/Garrison | Garrison Relay disabled 2386 | -8/Garrison | Triggered checkpoint 2447 | -8/Garrison | Discovered new exit (range 10) 2480 | -8/Garrison | Triggered checkpoint 2502 | -8/Garrison | Garrison Relay disabled 2608 | -8/Garrison | Triggered checkpoint 2676 | -8/Garrison | Triggered checkpoint 2704 | -8/Garrison | Garrison Relay disabled 2759 | -8/Garrison | Discovered new exit (range 8) 2792 | -8/Garrison | Triggered checkpoint 2799 | -8/Garrison | Discovered new exit (range 12) 2962 | -8/Garrison | Triggered checkpoint 3001 | -8/Garrison | Triggered checkpoint 3026 | -8/Garrison | Triggered checkpoint 3085 | -8/Garrison | Installed Relay Interface Framework 3106 | -8/Garrison | Garrison Relay disabled 3161 | -8/Garrison | Discovered new exit (range 14) 3190 | -8/Garrison | Entered Materials 3190 | -8/Materials | Accompanied by 1 ally 3413 | -8/Materials | Core integrity fell below 50% 3458 | -8/Materials | Discovered new exit (range 15) 3665 | -8/Materials | Discovered new exit (range 16) 3907 | -8/Materials | Garrison activated, responded to threat 3958 | -8/Materials | Lost 4 parts (1n2u1w) 3991 | -8/Materials | Destroyed 7 combat bots 4018 | -8/Materials | Discovered new exit (range 13) 4039 | -8/Materials | Entered Factory 4039 | -7/Factory | Evolved 2 slots: Utility x1, Weapon x1 4144 | -7/Factory | Identified exit to Garrison 4148 | -7/Factory | Entered Garrison 4166 | -7/Garrison | Triggered checkpoint 4220 | -7/Garrison | Found embedded Infiltrators 4298 | -7/Garrison | Triggered checkpoint 4300 | -7/Garrison | Triggered checkpoint 4362 | -7/Garrison | Lost 5 parts (1p2n2w) 4363 | -7/Garrison | Destroyed 7 combat bots 4398 | -7/Garrison | Triggered checkpoint 4519 | -7/Garrison | Destroyed 10 combat bots 4626 | -7/Garrison | Triggered checkpoint 4646 | -7/Garrison | Garrison Relay disabled 4715 | -7/Garrison | Discovered new exit (range 15) 4751 | -7/Garrison | Build established: Bothacker-Gunner 5132 | -7/Garrison | Triggered checkpoint 5156 | -7/Garrison | Discovered new exit (range 10) 5394 | -7/Garrison | Discovered new exit (range 12) 5554 | -7/Garrison | Triggered checkpoint 5595 | -7/Garrison | Expanded RIF knowledge: Zone Cloak 5759 | -7/Garrison | Entered Factory 5759 | -6/Factory | Evolved 2 slots: Power x1, Utility x1 6591 | -6/Factory | Discovered new exit (range 15) 6726 | -6/Factory | Allied Derelicts emerged from ambush trap array 7010 | -6/Factory | Entered another Factory area 7010 | -5/Factory | Accompanied by 2 allies 7010 | -5/Factory | Evolved 2 slots: Propulsion x1, Utility x1 7079 | -5/Factory | Identified exit to Garrison 7094 | -5/Factory | Entered Garrison 7094 | -5/Garrison | Accompanied by 2 allies 7122 | -5/Garrison | Triggered checkpoint 7144 | -5/Garrison | Garrison Relay disabled 7215 | -5/Garrison | Triggered checkpoint 7228 | -5/Garrison | Spotted B-75 Beast 7236 | -5/Garrison | Spotted B-86 Titan 7242 | -5/Garrison | Allies destroyed B-75 Beast 7253 | -5/Garrison | Destroyed B-86 Titan 7274 | -5/Garrison | Heavy support dispatched to Factory 7279 | -5/Garrison | Rewired B-75 Beast 7314 | -5/Garrison | Rewired B-86 Titan 7537 | -5/Garrison | Destroyed Titan 6a 7578 | -5/Garrison | Triggered checkpoint 7606 | -5/Garrison | Triggered checkpoint 7669 | -5/Garrison | Discovered new exit (range 14) 7715 | -5/Garrison | Found embedded Infiltrators 7734 | -5/Garrison | Garrison Relay disabled 7759 | -5/Garrison | Expanded RIF knowledge: Structural Interface 7977 | -5/Garrison | Found Prototype Device 8050 | -5/Garrison | Entered Factory 8050 | -5/Factory | Accompanied by 5 allies 8432 | -5/Factory | P-70 Sage assimilated allied 4R-1YZ(x) 8459 | -5/Factory | Identified exit to Garrison 8459 | -5/Factory | Entered Garrison 8459 | -5/Garrison | Accompanied by 1 ally 8482 | -5/Garrison | Triggered checkpoint 8485 | -5/Garrison | Build established: Scavenger-Gunner 8518 | -5/Garrison | Garrison Relay disabled 8585 | -5/Garrison | Spotted B-75 Beast 8586 | -5/Garrison | Triggered checkpoint 8595 | -5/Garrison | Destroyed B-75 Beast 8650 | -5/Garrison | Lost 3 parts (2n1u) 8702 | -5/Garrison | Triggered checkpoint 8783 | -5/Garrison | Expanded RIF knowledge: Program Shield 8852 | -5/Garrison | Heavy support dispatched to Factory 8864 | -5/Garrison | Discovered new exit (range 5) 8877 | -5/Garrison | Entered Factory 8877 | -4/Factory | Evolved 2 slots: Propulsion x1, Utility x1 9281 | -4/Factory | Spotted B-86 Titan 9302 | -4/Factory | Destroyed B-86 Titan 9373 | -4/Factory | Lost 4 parts (1n1u2w) 9465 | -4/Factory | Lost 6 parts (2p1n3u) 9477 | -4/Factory | Discovered new exit (range 9) 9522 | -4/Factory | Lost 3 parts (1n1u1w) 9587 | -4/Factory | Entered Upper Caves 9610 | -4/Upper Caves | Attracted the attention of an 0b10 outpost 9642 | -4/Upper Caves | Lost 5 parts (1p3n1u) 9732 | -4/Upper Caves | Lost 12 parts (2p2n3u5w) 9836 | -4/Upper Caves | Spotted B-86 Titan 9855 | -4/Upper Caves | Allies destroyed B-86 Titan 10248 | -4/Upper Caves | Attracted the attention of an 0b10 checkpoint 10300 | -4/Upper Caves | Discovered new exit (range 11) 10327 | -4/Upper Caves | Entered another Upper Caves area 10327 | -4/Upper Caves | Discovered new exit (range 15) 10331 | -4/Upper Caves | Learned 12 Research zone layouts 10351 | -4/Upper Caves | Entered Research 10351 | -3/Research | Evolved 2 slots: Utility x1, Weapon x1 10352 | -3/Research | Identified exit to Research 10352 | -3/Research | Identified exit to Armory 10353 | -3/Research | Identified exit to DSF 10354 | -3/Research | Entered DSF 10385 | -3/DSF | Additional patrols routed to DSF 10463 | -3/DSF | Lost 10 parts (2p3n2u3w) 10630 | -3/DSF | Lost 4 parts (1p1n1u1w) 10641 | -3/DSF | Sterilization system engaged 10652 | -3/DSF | Discovered exit to Research (range 14) 10661 | -3/DSF | Ambient heat levels rising (+10) 10676 | -3/DSF | Ambient heat levels rising (+10) 10691 | -3/DSF | Ambient heat levels rising (+10) 10706 | -3/DSF | Ambient heat levels rising (+10) 10721 | -3/DSF | Ambient heat levels rising (+10) 10736 | -3/DSF | Ambient heat levels rising (+10) 10751 | -3/DSF | Ambient heat levels rising (+10) 10766 | -3/DSF | Ambient heat levels rising (+10) 10781 | -3/DSF | Ambient heat levels rising (+10) 10795 | -3/DSF | Entered Research 10795 | -2/Research | Evolved 2 slots: Utility x2 11068 | -2/Research | Garrison activated, responded to threat 11099 | -2/Research | Build established: Scavenger-Tank 11511 | -2/Research | Lost 17 parts (3p5n5u4w) 11679 | -2/Research | System corruption reached 10% 11725 | -2/Research | Core integrity fell below 50% 11762 | -2/Research | Lost 15 parts (2p5n4u4w) 11844 | -2/Research | Released all parts (5) 11847 | -2/Research | Core integrity fell below 20% 11874 | -2/Research | Lost 7 parts (2p1n2u2w) 11882 | -2/Research | Destroyed by G-73 Enforcer with Phase Gun Last Messages --------------- 11844_ U-05 Engineer builds a Wall. 11844_ K-01 Serf collects debris. 11846_ Penetrated by Slug. 11847_ U-05 Engineer builds a Wall. 11847_ Acquired Unknown Leg. 11847_ Identified Centrium Leg. 11848_ U-05 Engineer builds a Wall. 11849_ Penetrated by Slug. 11850_ Acquired Centrium Leg. 11853_ Penetrated by Slug. 11853_ Slug penetrates Wall. 11859_ Penetrated by Slug. 11859_ Slug penetrates Wall. 11864_ Penetrated by Slug. 11868_ Slug penetrates A-15 Conveyor. 11868_ Penetrated by Slug. 11869_ System corrupted: Component data lost. 11871_ Penetrated by Slug. 11876_ Slug penetrates Wall. 11879_ RIF reveals location of hidden door. Map ----- +----------------------------------------------------+ | ??######+###### != !!#?????????????????? | | ??????????????# != ^ !!##????????????????? | | ??????????????#^ #????????????????? | | ??????????????# [ #????????????????? | | ??????????????# #######??????????? | | ??????????????# ?????????? | | ??????????????# #######??????????? | | ??????????????# ######????????????????? | | ?????????????## "" #??????????????????? | | ?????????????+ """#??????????????????? | | ?????????????## T"#??????????????????? | | ??????????????# """#??????????????????? | | ????????????### """" "" #??????????????????? | | ???????????? """" ####??????????????????? | | ??????????? """" #??###????????????????? | | ???????????## """" #? #????????????????? | | ????????????# #? #????????????????? | | ????????????# # #????????????????? | | ????????????# # #????????????????? | | ????????????# ] + #????????????????? | | ????????????# # #????????????????? | | ????????????# # #????????????????? | | ????????????# #? #????????????????? | | ????????????# #####+####? #????????????????? | | ????????????# + #??###????????????????? | | ????????????? ?# k @ #?????????????????????? | | ??????????????????# #?????????????????????? | | ??????????????????# #?????????????????????? | | ??????????????????# #?????????????????????? | | ??????????????????# +?????????????????????? | | ??????????????????# #?????????????????????? | | ??????????????????# #?????????????????????? | | ??????????????????# #?????????????????????? | | ??????????????????######g###?????????????????????? | | ???????????????????????A #???????????????????????? | | ???????????????????????#g#???????????????????????? | | ???????????????????????# ????????????????????????? | | ???????????????????????# ????????????????????????? | | ????????????????????????k????????????????????????? | | ????????????????????????k????????????????????????? | | ???????????????????????? ????????????????????????? | | ?????????????????????????????????????????????????? | | ?????????????????????????????????????????????????? | | ?????????????????????????????????????????????????? | | ?????????????????????????????????????????????????? | | ?????????????????????????????????????????????????? | | ?????????????????????????????????????????????????? | | ?????????????????????????????????????????????????? | | ?????????????????????????????????????????????????? | | ?????????????????????????????????????????????????? | +----------------------------------------------------+ Best States ------------- Heat Dissipation 112 Energy Generation 49 Energy Capacity 970 Matter Stores 300 Matter Capacity 300 Sight Range 16 Terrain Scan Range 16 Terrain Scan Density 85 Additional Mass Support 12 Armor Coverage 1200 Resistance: KI 25 Resistance: TH 20 Core Shielding 30 Power Shielding 66 Weapon Cycling 25 Phase Shifting 15 Evasion (%) 55 Core Analysis 9 Recoil Reduction 6 Particle Charging 25 Relay Coupler Types 3 Relay Coupler Value 57 Item Schematics ----------------- Spread Laser | -9/Materials | Scanalyzed Imp. Targeting Computer | -9/Materials | Scanalyzed Robot Schematics ------------------ None Fabricated ------------ Nothing Alien Tech Used ----------------- None Achievements -------------- None Challenges ------------ None Game ------ Seed CoolingPhaseRay Manual? 0 Play Time 01:50:03 Cumulative 124.4 hours Start 2022.12.04 @ 00:28:45 End 2022.12.06 @ 00:36:19 Sessions 4 Manual Loads 0 Difficulty Rogue Special Mode None Game No. 217 Rogue 217 Adventurer 0 Explorer 0 Win Type - Total 2 Types 1/0/1/0/0/0/0/0/0 Lore% 65 Gallery% 72 Achievement% 53 Wizard Run 0 Options --------- ASCII 0 Keyboard 0 Movement Mouse Keybinds 0 Fullscreen 1 Font 18/SmallcapsGlow Map View 76x50 Tactical HUD 1 Map Filters NONE Filters NONE Steam 1 RUN: b63f51d7-16a0-4f02-aa58-21cd7d8a3da5